bitfinex/quotes_ETHUSD_20250810
["timestamp","ask_amount","ask_price","bid_price","bid_amount"]
[1754819401647,2.3640103,4230.1,4230.0,0.001]
[1754819401846,9.0610103,4230.1,4230.0,0.001]
[1754819402049,12.6918103,4230.1,4230.0,0.001]
[1754819402852,9.0708103,4230.1,4230.0,0.001]
[1754819403167,12.6928103,4230.1,4230.0,0.001]
[1754819404496,12.6830103,4230.1,4230.0,0.001]
[1754819404811,12.6840103,4230.1,4230.0,0.001]
[1754819404945,6.147,4230.1,4230.0,0.001]
[1754819405145,12.1330103,4230.1,4230.0,0.001]
[1754819405350,12.6830103,4230.1,4230.0,0.001]
[1754819407547,12.69414703,4230.1,4230.0,0.001]
[1754819407996,12.86296702,4230.1,4230.0,0.001]
[1754819408206,12.31296702,4230.1,4230.0,0.001]
[1754819408555,8.68996702,4230.1,4230.0,0.001]
[1754819409556,12.86296702,4230.1,4230.0,0.001]
[1754819410081,12.98136702,4230.1,4230.0,0.001]
[1754819410656,12.99116702,4230.1,4230.0,0.001]
[1754819411277,12.98136702,4230.1,4230.0,0.001]
[1754819411574,9.35836702,4230.1,4230.0,0.001]
[1754819411882,12.98336702,4230.1,4230.0,0.001]
[1754819413758,15.98336702,4230.1,4230.0,0.001]
[1754819414053,16.49882246,4230.1,4230.0,0.001]
[1754819414776,16.49102246,4230.1,4230.0,0.001]
[1754819415183,16.50082246,4230.1,4230.0,0.001]
[1754819416882,16.50082246,4230.1,4230.0,1e-08]
[1754819417051,16.72077292,4230.1,4230.0,1e-08]
[1754819417474,16.71097292,4230.1,4230.0,1e-08]
[1754819418379,12.96557292,4230.1,4230.0,1e-08]
[1754819418567,16.49302246,4230.1,4230.0,1e-08]
[1754819419496,16.49435919,4230.1,4230.0,1e-08]
[1754819420096,13.71427322,4230.1,4230.0,1e-08]
[1754819420268,9.86535919,4230.1,4230.0,1e-08]
[1754819420465,16.49435919,4230.1,4230.0,1e-08]
[1754819420768,13.49435919,4230.1,4230.0,1e-08]
[1754819421162,16.49435919,4230.1,4230.0,1e-08]
[1754819424378,12.19695919,4230.1,4230.0,1e-08]
[1754819424692,16.49135919,4230.1,4230.0,1e-08]
[1754819424900,16.71150634,4230.1,4230.0,1e-08]
[1754819425101,16.49135919,4230.1,4230.0,1e-08]
[1754819425502,16.71160697,4230.1,4230.0,1e-08]
[1754819426602,16.71173661,4230.1,4230.0,1e-08]
[1754819426808,17.34737424,4230.1,4230.0,1e-08]
[1754819426984,16.71173661,4230.1,4230.0,1e-08]
[1754819427181,17.34737424,4230.1,4230.0,1e-08]
[1754819427377,16.71173661,4230.1,4230.0,1e-08]
[1754819428102,13.08573661,4230.1,4230.0,1e-08]
[1754819428284,17.56225345,4230.1,4230.0,1e-08]
[1754819428477,13.93325345,4230.1,4230.0,1e-08]
[1754819428813,17.56125345,4230.1,4230.0,0.47130001]
[1754819429177,17.98501187,4230.1,4230.0,0.47130001]
[1754819429375,17.98501187,4230.1,4230.0,1e-08]
[1754819430001,17.98501187,4230.1,4230.0,0.95900001]
[1754819430407,17.98501187,4230.1,4230.0,0.47130001]
[1754819431479,17.98501187,4230.1,4230.0,1e-08]
[1754819431881,16.71373661,4230.1,4230.0,1e-08]
[1754819432300,17.98922759,4230.1,4230.0,1e-08]
[1754819432709,16.71373661,4230.1,4230.0,1e-08]
[1754819432891,16.84661204,4230.1,4230.0,1e-08]
[1754819433720,16.8476991,4230.1,4230.0,1e-08]
[1754819434136,2.91423387,4229.7,4229.6,0.041]
[1754819434322,8.11907521,4229.7,4229.6,0.041]
[1754819434518,7.26869052,4229.7,4229.6,0.041]
[1754819435014,7.38709052,4229.7,4229.6,0.041]
[1754819435223,8.23748269,4229.7,4229.6,0.041]
[1754819435519,11.23748269,4229.7,4229.6,1e-08]
[1754819435717,5.91428976,4229.6,4229.5,1e-08]
[1754819436031,6.77564183,4229.6,4229.5,1e-08]
[1754819436725,8.05125946,4229.6,4229.5,1e-08]
[1754819437392,7.91836404,4229.6,4229.5,1e-08]
[1754819437593,6.64274641,4229.6,4229.5,1e-08]
[1754819438832,15.08124146,4229.6,4229.5,1e-08]
[1754819439597,13.80562383,4229.6,4229.5,1e-08]
[1754819439799,13.67274641,4229.6,4229.5,1e-08]
[1754819440665,17.29574641,4229.6,4229.5,0.47130001]
[1754819440834,17.29708314,4229.6,4229.5,0.95900001]
[1754819441153,17.71580299,4229.6,4229.5,0.95900001]
[1754819441353,18.26580299,4229.6,4229.5,0.95900001]
[1754819442069,14.64280299,4229.6,4229.5,0.95900001]
[1754819442268,23.56848314,4229.6,4229.5,0.95900001]
[1754819443362,17.58126365,4229.6,4229.5,0.95900001]
[1754819443659,21.20626365,4229.6,4229.5,0.95900001]
[1754819444064,14.66697389,4229.6,4229.5,0.95900001]
[1754819444373,9.89673673,4229.6,4229.5,0.95900001]
[1754819446964,0.11973673,4229.6,4229.5,3.32334567]
[1754819447169,3.7424,4229.6,4229.5,3.65568024]
[1754819447336,0.1184,4229.6,4229.5,3.65568024]
[1754819447668,3.7444,4229.6,4229.5,3.65568024]
[1754819450969,3.7444,4229.6,4229.5,1.29133458]
[1754819451134,3.7444,4229.6,4229.5,3.65568024]
[1754819451339,3.7444,4229.6,4229.5,1.29133458]
[1754819451540,6.10868976,4229.6,4229.5,0.95900001]
[1754819452246,6.10868976,4229.6,4229.5,1e-08]
[1754819452772,6.65868976,4229.6,4229.5,1e-08]
[1754819453141,6.66002649,4229.6,4229.5,1e-08]
[1754819455939,5.98828976,4229.6,4229.5,1e-08]
[1754819456163,3.7424,4229.6,4229.5,1e-08]
[1754819459998,3.7394,4229.6,4229.5,0.91720001]
[1754819461852,0.1184,4229.6,4229.5,3.28154567]
[1754819462054,3.7394,4229.6,4229.5,3.28154567]
[1754819462466,3.7394,4229.6,4229.5,3.25374217]
[1754819463071,3.7394,4229.6,4229.5,0.88939651]
[1754819463386,3.7394,4229.6,4229.5,3.25374217]
[1754819467369,3.7394,4229.6,4229.5,0.88939651]
[1754819467885,3.7394,4229.6,4229.5,3.25374217]
[1754819468459,3.7394,4229.6,4229.5,0.88939651]
[1754819468860,3.7394,4229.6,4229.5,3.25374217]
[1754819470390,0.18320621,4230.5,4229.9,2.36411286]
[1754819470689,0.18320621,4230.5,4229.5,3.81556199]
[1754819470690,0.1184,4229.6,4229.5,0.56181982]
[1754819470869,0.1184,4229.6,4229.5,2.36432751]
[1754819471077,0.1184,4229.6,4229.5,6.28152751]
[1754819471462,3.617,4229.9,4229.8,2.36417797]
[1754819471687,3.617,4229.9,4229.8,3.28137797]
[1754819471987,3.7354,4229.9,4229.8,3.28137797]
[1754819472290,0.1184,4229.9,4229.8,7.38237382]
[1754819472490,3.618,4230.3,4230.2,2.36395442]
[1754819472693,3.7364,4230.3,4230.2,2.36395442]
[1754819472894,3.7364,4230.3,4230.2,6.28115442]
[1754819473904,0.1184,4230.3,4230.2,6.28115442]
[1754819474112,0.1184,4230.3,4230.2,7.14567287]
[1754819475463,0.1184,4230.3,4230.2,6.28115442]
[1754819475860,0.1184,4230.3,4230.1,2.36400697]
[1754819476089,0.1184,4230.3,4230.0,5.36401703]
[1754819476362,0.002,4230.5,4230.0,2.36401703]
[1754819476698,0.1184,4230.1,4230.0,2.36401703]
[1754819477487,3.7364,4230.1,4230.0,2.36401703]
[1754819477696,3.7364,4230.1,4229.6,2.83264382]
[1754819477892,3.618,4230.1,4229.7,3.4626]
[1754819478097,3.618,4230.1,4229.5,2.36434315]
[1754819478288,0.1184,4229.7,4229.4,2.36440156]
[1754819478490,0.1184,4229.7,4229.2,0.4626]
[1754819478491,0.1184,4229.5,4229.2,0.4626]
[1754819478800,3.7364,4229.5,4229.1,0.001]
[1754819479095,0.1184,4229.2,4229.1,0.4636]
[1754819479694,0.1184,4229.2,4229.1,0.001]
[1754819480284,0.1184,4229.2,4229.1,0.4636]
[1754819480795,0.1184,4229.2,4229.1,2.82816929]
[1754819480984,0.1184,4229.2,4229.1,3.49496929]
[1754819481162,0.1184,4229.2,4229.1,4.081134]
[1754819481369,0.1184,4229.2,4229.1,3.49496929]
[1754819483799,0.1184,4229.2,4229.1,6.49496929]
[1754819488590,3.616,4229.9,4229.8,2.36417797]
[1754819488912,3.618,4230.5,4230.4,2.36384266]
[1754819489084,3.618,4230.5,4230.4,2.82644266]
[1754819489884,3.7364,4230.5,4230.4,2.82644266]
[1754819490574,0.002,4230.5,4230.4,7.07896086]
[1754819490806,0.002,4230.5,4230.4,7.78862986]
[1754819491009,0.002,4230.5,4230.4,6.41216086]
[1754819491179,0.002,4230.5,4230.4,2.36384266]
[1754819493885,0.002,4230.5,4230.4,2.82644266]
[1754819494520,0.602,4230.5,4230.4,2.82644266]
[1754819494812,0.602,4230.5,4229.5,0.001]
[1754819495011,0.1184,4229.6,4229.5,2.36532674]
[1754819495313,0.1184,4229.6,4229.5,5.36532674]
[1754819495614,0.1184,4229.6,4229.5,2.82792674]
[1754819495982,0.1184,4229.6,4229.5,6.49472674]
[1754819496193,0.1184,4229.6,4229.5,7.3806415]
[1754819497634,0.002,4230.5,4230.4,2.36384266]
[1754819498020,0.1204,4230.5,4230.4,2.82644266]
[1754819498730,0.1204,4230.5,4230.3,2.36388401]
[1754819498928,0.1204,4230.5,4230.4,2.36384266]
[1754819499642,0.1204,4230.5,4230.4,2.82644266]
[1754819500815,0.1204,4230.5,4230.4,3.49324266]
[1754819501012,1e-08,4230.6,4230.5,2.36378678]
[1754819501212,1e-08,4230.6,4230.5,6.51682464]
[1754819501531,1e-08,4230.6,4230.5,6.49318678]
[1754819502030,1e-08,4230.6,4230.5,6.61158678]
[1754819505205,0.002,4230.9,4230.5,6.61158678]
[1754819505206,1e-08,4230.9,4230.8,2.36361917]
[1754819505417,1e-08,4230.9,4230.8,9.90292699]
[1754819505706,1e-08,4230.9,4230.8,11.1270908]
[1754819510040,1e-08,4230.9,4230.8,11.1260908]
[1754819510838,1e-08,4230.9,4230.8,10.4545908]
[1754819511344,1e-08,4230.9,4230.8,11.1164908]
[1754819511533,1e-08,4230.9,4230.8,7.4874908]
[1754819513710,1e-08,4230.9,4230.8,7.4884908]
[1754819521418,1e-08,4230.9,4230.8,6.8265908]
[1754819521752,1e-08,4230.9,4230.8,10.4465908]
[1754819522119,0.11840001,4230.9,4230.8,0.001]
[1754819522319,0.72060001,4230.9,4230.8,0.001]
[1754819522547,3.08416331,4230.9,4230.8,0.001]
[1754819523959,6.71116331,4230.9,4230.8,0.001]
[1754819526528,7.31116331,4230.9,4230.8,0.001]
[1754819532058,3.08196331,4230.9,4230.8,0.001]
[1754819532360,7.28446331,4230.9,4230.8,0.001]
[1754819536360,7.28446331,4230.9,4229.9,0.001]
[1754819536361,0.55,4230.5,4229.9,0.001]
[1754819536529,6.53384266,4230.4,4229.9,0.001]
[1754819536730,7.23174266,4230.4,4229.9,0.001]
[1754819537555,7.23274266,4230.4,4229.9,0.001]
[1754819537758,6.65324266,4230.4,4229.9,0.001]
[1754819537951,7.07094266,4230.4,4229.9,0.001]
[1754819538267,7.23274266,4230.4,4229.9,0.001]
[1754819540846,6.65324266,4230.4,4229.9,0.001]
[1754819541557,3.03224266,4230.4,4229.9,0.001]
[1754819541761,6.65224266,4230.4,4229.9,0.001]
[1754819542433,6.65124266,4230.4,4229.9,0.001]
[1754819542988,3.03224266,4230.4,4229.9,0.001]
[1754819543267,6.8274599,4230.4,4229.9,0.001]
[1754819543444,7.21023225,4230.4,4229.9,0.001]
[1754819545361,7.77443225,4230.4,4229.9,0.001]
[1754819545563,7.61263225,4230.4,4229.9,0.001]
[1754819545779,7.21023225,4230.4,4229.9,0.001]
[1754819545982,7.77443225,4230.4,4229.9,0.001]
[1754819546151,2.91406619,4230.0,4229.9,0.001]
[1754819546332,6.53106619,4230.0,4229.9,0.001]
[1754819546532,6.64946619,4230.0,4229.9,0.001]
[1754819547864,7.21366619,4230.0,4229.9,0.001]
[1754819548034,6.64946619,4230.0,4229.9,0.001]
[1754819549142,7.15816389,4230.0,4229.9,0.001]
[1754819549365,6.64946619,4230.0,4229.9,0.001]
[1754819549565,7.15813318,4230.0,4229.9,0.001]
[1754819550151,6.64946619,4230.0,4229.9,0.001]
[1754819550561,6.64946619,4230.0,4229.9,0.4642]
[1754819551265,7.15862739,4230.0,4229.9,0.4642]
[1754819552041,7.15862739,4230.0,4229.9,0.001]
[1754819552688,7.56102739,4230.0,4229.9,0.001]
[1754819552888,7.15876389,4230.0,4229.9,0.001]
[1754819553482,7.15876389,4230.0,4229.9,1.1371]
[1754819553995,7.15776389,4230.0,4229.9,0.001]
[1754819557771,7.15776389,4230.0,4229.9,0.4642]
[1754819558789,7.15576389,4230.0,4229.9,0.4642]
[1754819559186,7.15576389,4230.0,4229.9,0.001]
[1754819559387,7.15576389,4230.0,4229.9,1.1371]
[1754819559586,7.15476389,4230.0,4229.9,1.1371]
[1754819559787,3.54176389,4230.0,4229.9,1.1371]
[1754819559979,6.64546619,4230.0,4229.9,1.1371]
[1754819560184,7.15476389,4230.0,4229.9,1.1371]
[1754819560474,7.15476389,4230.0,4229.9,0.4642]
[1754819560701,3.54176389,4230.0,4229.9,0.4642]
[1754819560885,3.03246619,4230.0,4229.9,0.4642]
[1754819561100,6.64546619,4230.0,4229.9,0.4642]
[1754819561283,3.54176389,4230.0,4229.9,0.4642]
[1754819561471,3.54176389,4230.0,4229.9,0.001]
[1754819561472,6.64446619,4230.0,4229.9,0.001]
[1754819561807,7.15376389,4230.0,4229.9,0.001]
[1754819562304,3.54176389,4230.0,4229.9,0.001]
[1754819562511,6.64446619,4230.0,4229.9,0.001]
[1754819562684,7.15376389,4230.0,4229.9,0.001]
[1754819562885,7.15376389,4230.0,4229.9,0.4642]
[1754819566330,7.37532891,4230.0,4229.9,0.4642]
[1754819567390,7.37532891,4230.0,4229.9,0.001]
[1754819568795,8.01195103,4230.0,4229.9,0.001]
[1754819570399,17.23209816,4230.0,4229.9,1e-08]
[1754819570613,17.62519816,4230.0,4229.9,1e-08]
[1754819570814,17.07029816,4230.0,4229.9,1e-08]
[1754819571355,17.62519816,4230.0,4229.9,1e-08]
[1754819571641,17.62522262,4230.0,4229.9,1e-08]
[1754819573016,17.46342262,4230.0,4229.9,1e-08]
[1754819573411,17.07032262,4230.0,4229.9,1e-08]
[1754819574444,19.56025514,4230.0,4229.9,1e-08]
[1754819575518,13.45825514,4230.0,4229.9,1e-08]
[1754819575838,16.38434554,4230.0,4229.9,1.06940001]
[1754819576027,16.93434554,4230.0,4229.9,1.06940001]
[1754819576216,13.93434554,4230.0,4229.9,1.06940001]
[1754819577234,10.32534554,4230.0,4229.9,1.06940001]
[1754819577433,13.93434554,4230.0,4229.9,1.06940001]
[1754819577842,13.93434554,4230.0,4229.9,0.45460001]
[1754819578649,13.93434554,4230.0,4229.9,1.06940001]
[1754819580147,13.93434554,4230.0,4229.9,1e-08]
[1754819580351,13.93424919,4230.0,4229.9,1e-08]
[1754819582041,13.93424605,4230.0,4229.9,1e-08]
[1754819582572,13.93424605,4230.0,4229.9,0.45460001]
[1754819582753,13.93424605,4230.0,4229.9,1.06940001]
[1754819582924,10.32524605,4230.0,4229.9,1.06940001]
[1754819583123,13.93424605,4230.0,4229.9,1.06940001]
[1754819583318,13.93424605,4230.0,4229.9,1e-08]
[1754819584148,13.93424605,4230.0,4229.9,0.45460001]
[1754819584346,16.42424605,4230.0,4229.9,0.45460001]
[1754819584547,16.42424605,4230.0,4229.9,1.06940001]
[1754819584548,13.93424605,4230.0,4229.9,1.06940001]
[1754819584745,10.32524605,4230.0,4229.9,0.45460001]
[1754819584949,13.93424605,4230.0,4229.9,1.06940001]
[1754819585150,14.57212187,4230.0,4229.9,1.06940001]
[1754819585350,14.57212274,4230.0,4229.9,1.06940001]
[1754819585651,13.93424692,4230.0,4229.9,1.06940001]
[1754819588457,14.53424692,4230.0,4229.9,1.06940001]
[1754819589354,13.25345836,4230.0,4229.9,1.06940001]
[1754819595256,13.80345836,4230.0,4229.9,1e-08]
[1754819595655,14.31338846,4230.0,4229.9,1e-08]
[1754819601972,14.31538846,4230.0,4229.9,1e-08]
[1754819603286,18.70643917,4230.0,4229.9,1e-08]
[1754819603440,20.02676335,4230.0,4229.9,1e-08]
[1754819603774,20.69141274,4230.0,4229.9,1e-08]
[1754819604339,20.15961274,4230.0,4229.9,1e-08]
[1754819605536,20.15961006,4230.0,4229.9,1e-08]
[1754819609190,21.00944282,4230.0,4229.9,1e-08]
[1754819609802,21.00944282,4230.0,4229.4,0.001]
[1754819609803,0.55,4229.2,4224.3,4.44643966]
[1754819610105,4.158,4229.2,4225.6,3.648]
[1754819610299,4.7863301,4229.2,4225.6,3.648]
[1754819610892,7.15084348,4229.2,4225.6,3.648]
[1754819611097,7.15084348,4229.2,4229.1,0.50468005]
[1754819611609,7.15084348,4229.2,4229.1,0.3863601]
[1754819611809,7.15084348,4229.2,4229.1,0.8326601]
[1754819612033,7.15084348,4229.2,4229.1,0.71434015]
[1754819612390,7.15084348,4229.2,4229.1,0.5960202]
[1754819612776,7.15084348,4229.2,4229.1,0.47769997]
[1754819613106,7.15084348,4229.2,4229.1,0.35937974]
[1754819613489,7.15084348,4229.2,4229.1,0.24105951]
[1754819613889,7.15084348,4229.2,4229.1,0.12273928]
[1754819614295,7.15084348,4229.2,4229.1,0.00441905]
[1754819614492,2.91456929,4229.1,4228.1,0.001]
[1754819614692,2.36468112,4228.9,4228.1,0.001]
[1754819614888,6.09108112,4228.9,4228.8,0.131]
[1754819615413,6.09108112,4228.9,4228.8,0.753]
[1754819616406,6.09108112,4228.9,4228.8,1.1993]
[1754819621796,6.09108112,4228.9,4228.8,1.1993]
[1754819631122,6.60157548,4228.9,4228.8,1.1993]
[1754819635025,6.60157548,4228.9,4228.8,0.131]
[1754819635732,7.15157548,4228.9,4228.8,0.01267697]
[1754819635892,9.0861263,4228.9,4228.8,0.01267697]
[1754819636221,9.0861263,4228.9,4228.3,0.001]
[1754819636222,2.36496074,4228.4,4228.3,0.001]
[1754819636426,6.52196074,4228.4,4228.3,0.001]
[1754819636598,7.0324551,4228.4,4228.3,0.001]
[1754819636931,8.2262551,4228.4,4228.3,0.001]
[1754819637500,7.5954551,4228.4,4228.3,0.001]
[1754819638826,8.2262551,4228.4,4228.3,0.001]
[1754819639726,2.91501667,4228.3,4227.9,0.001]
[1754819639924,3.42551103,4228.3,4227.9,0.001]
[1754819640146,3.87011103,4228.3,4227.9,0.001]
[1754819640708,3.42551103,4228.3,4227.9,0.001]
[1754819641035,4.72247866,4228.3,4227.9,0.001]
[1754819641197,7.81904023,4228.2,4227.9,0.001]
[1754819641399,8.32953459,4228.2,4227.9,0.001]
[1754819641903,8.10796696,4228.2,4227.9,0.001]
[1754819642109,5.91518448,4228.0,4227.9,0.001]
[1754819642331,10.25415887,4228.0,4227.9,0.001]
[1754819642657,2.91535231,4227.7,4227.6,0.04]
[1754819642796,2.91535231,4227.7,4226.4,2.36602705]
[1754819642797,2.91540826,4227.6,4226.2,4.497]
[1754819642995,0.55,4227.4,4226.7,0.4678]
[1754819643195,0.1184,4226.8,4226.3,0.4678]
[1754819643427,3.607,4226.7,4226.5,0.4678]
[1754819643633,3.607,4226.7,4226.6,1.1312]
[1754819644733,3.607,4226.7,4226.6,3.49716791]
[1754819645835,3.607,4226.7,4226.6,1.1312]
[1754819647124,3.607,4226.7,4226.6,3.49716791]
[1754819647329,3.607,4226.7,4226.6,1.1312]
[1754819648849,3.607,4226.7,4226.6,3.49716791]
[1754819649325,3.7254,4226.7,4226.6,3.49716791]
[1754819649819,0.1184,4226.7,4226.6,4.08349165]
[1754819650023,3.7264,4226.7,4226.6,4.08349165]
[1754819654765,0.1184,4226.7,4226.6,4.08349165]
[1754819655065,1e-08,4226.7,4226.6,7.08349165]
[1754819655452,1e-08,4226.7,4226.6,7.20189165]
[1754819660766,1e-08,4227.6,4227.5,2.36546422]
[1754819661065,1e-08,4227.6,4227.5,6.13856467]
[1754819661277,0.2914906,4228.2,4228.1,2.36512854]
[1754819661434,0.1184,4228.2,4228.1,2.36512854]
[1754819662370,1.1701,4228.2,4228.0,2.36517309]
[1754819662553,0.4661,4228.1,4228.0,2.36517309]
[1754819662765,0.5845,4228.1,4228.0,2.36517309]
[1754819663177,0.1184,4228.1,4228.0,2.36517309]
[1754819663647,0.1184,4228.1,4227.7,2.36533539]
[1754819663852,0.1184,4228.1,4227.4,2.97538651]
[1754819663853,4.6577,4228.0,4227.8,2.36528096]
[1754819664051,4.6577,4228.0,4227.1,3.0]
[1754819664052,4.6577,4228.0,4227.9,2.36524042]
[1754819664269,3.7244,4228.0,4227.9,2.36524042]
[1754819664445,3.7244,4228.0,4227.9,3.41674042]
[1754819664645,0.1184,4228.0,4227.9,3.41674042]
[1754819664839,0.1184,4228.0,4227.9,2.36524042]
[1754819665277,0.1184,4228.0,4227.6,2.36539978]
[1754819665278,0.5845,4228.0,4227.6,2.36539978]
[1754819665454,0.5856,4227.9,4226.9,2.38945798]
[1754819665661,0.935,4227.9,4227.6,2.36536624]
[1754819666168,0.1184,4227.7,4227.4,2.36550795]
[1754819666372,0.1184,4227.7,4227.3,2.3655663]
[1754819666680,0.1184,4227.4,4227.3,2.3655663]
[1754819667961,0.1184,4227.4,4227.3,3.4170663]
[1754819668247,0.1184,4227.4,4227.3,3.90093392]
[1754819669270,2.36690408,4228.6,4227.8,2.3652702]
[1754819669473,3.606,4228.5,4227.8,2.3652702]
[1754819669783,0.1184,4227.9,4227.8,2.3652702]
[1754819670551,0.1184,4227.9,4227.7,2.36533562]
[1754819670994,0.1184,4227.9,4227.6,2.36540157]
[1754819671196,0.5845,4227.9,4227.6,2.36540157]
[1754819671399,3.606,4227.8,4227.6,2.36539716]
[1754819671558,3.606,4227.8,4227.7,2.36535231]
[1754819671963,3.7244,4227.8,4227.7,2.36535231]
[1754819672301,3.7244,4227.8,4227.5,2.36541512]
[1754819672597,0.1184,4227.5,4227.4,2.36552017]
[1754819672895,0.1184,4227.5,4227.4,3.9952798]
[1754819673271,0.1184,4227.5,4227.4,6.9952798]
[1754819683799,0.2988444,4227.5,4227.4,6.9952798]
[1754819690207,0.2988444,4227.5,4227.4,5.9437798]
[1754819690392,0.2988444,4227.5,4227.4,5.36552017]
[1754819699210,0.7534444,4227.5,4227.4,5.36552017]
[1754819699390,0.2988444,4227.5,4227.4,5.36552017]
[1754819699585,0.7534444,4227.5,4227.4,5.36552017]
[1754819700608,0.2988444,4227.5,4227.4,5.36552017]
[1754819702004,0.7534444,4227.5,4227.4,5.36552017]
[1754819702307,1.3505444,4227.5,4227.4,5.36552017]
[1754819703392,0.7534444,4227.5,4227.4,5.36552017]
[1754819703606,0.2988444,4227.5,4226.9,2.36576369]
[1754819703781,0.4546,4227.4,4226.6,0.1584]
[1754819703981,4.2011,4227.3,4226.6,0.1584]
[1754819704209,1.0517,4227.2,4226.6,0.04]
[1754819704383,0.1184,4226.7,4226.6,0.04]
[1754819704586,3.7224,4226.7,4226.6,0.04]
[1754819704934,4.7741,4226.7,4226.6,0.04]
[1754819708519,4.7741,4226.7,4226.6,0.041]
[1754819709919,4.177,4226.7,4226.6,0.041]
[1754819710254,4.7741,4226.7,4226.6,0.041]
[1754819710422,3.7224,4226.7,4226.6,0.041]
[1754819710714,4.6803,4226.7,4226.6,0.041]
[1754819711501,7.04621194,4226.7,4226.6,0.041]
[1754819711714,4.6803,4226.7,4226.6,0.041]
[1754819712222,4.0832,4226.7,4226.6,0.041]
[1754819712426,3.7224,4226.7,4226.6,0.041]
[1754819719431,0.1184,4226.7,4226.6,5.69103114]
[1754819719599,3.7234,4226.7,4226.6,0.32506323]
[1754819719913,7.14491194,4226.7,4226.6,0.041]
[1754819720704,4.779,4226.7,4226.6,0.041]
[1754819720929,7.14491194,4226.7,4226.6,0.041]
[1754819722614,4.779,4226.7,4226.6,0.041]
[1754819723335,1.174,4226.7,4226.6,0.041]
[1754819723523,3.7234,4226.7,4226.6,0.041]
[1754819723729,7.14491194,4226.7,4226.6,0.041]
[1754819724051,4.779,4226.7,4226.6,0.041]
[1754819724546,7.14491194,4226.7,4226.6,0.041]
[1754819725042,4.779,4226.7,4226.6,0.041]
[1754819725628,7.14491194,4226.7,4226.6,0.041]
[1754819727021,7.69491194,4226.7,4226.6,0.041]
[1754819730053,7.69691194,4226.7,4226.6,0.041]
[1754819731538,8.20664083,4226.7,4226.6,0.041]
[1754819732448,8.42798839,4226.7,4226.6,0.041]
[1754819733230,11.42798839,4226.7,4226.6,0.041]
[1754819733433,17.98998056,4226.7,4226.6,0.041]
[1754819733833,18.12286471,4226.7,4226.6,0.041]
[1754819737233,17.98998056,4226.7,4226.6,0.041]
[1754819738533,18.62727145,4226.7,4226.6,0.041]
[1754819738752,17.98998056,4226.7,4226.6,0.041]
[1754819739866,18.12274696,4226.7,4226.6,1e-08]
[1754819740541,18.97040305,4226.7,4226.6,1e-08]
[1754819741762,14.30980305,4226.7,4226.6,1e-08]
[1754819741950,16.93438056,4226.7,4226.6,1e-08]
[1754819742356,13.96644605,4226.7,4226.6,1e-08]
[1754819742673,16.38438056,4226.7,4226.6,1.05470001]
[1754819742965,16.713033,4226.7,4226.6,1.05470001]
[1754819743162,16.93422889,4226.7,4226.6,1.05470001]
[1754819743534,12.558033,4226.7,4226.6,1.05470001]
[1754819743763,16.163033,4226.7,4226.6,1.05470001]
[1754819744335,16.163033,4226.7,4226.6,1e-08]
[1754819745141,16.38427857,4226.7,4226.6,1e-08]
[1754819745869,16.38427857,4226.7,4226.6,0.46640001]
[1754819746038,16.93427857,4226.7,4226.6,1e-08]
[1754819746243,16.93430947,4226.7,4226.6,1e-08]
[1754819746466,13.93430947,4226.7,4226.6,1.05470001]
[1754819747467,10.32930947,4226.7,4226.6,1.05470001]
[1754819747644,13.93430947,4226.7,4226.6,1.05470001]
[1754819747847,10.32930947,4226.7,4226.6,1.05470001]
[1754819748168,13.93330947,4226.7,4226.6,1e-08]
[1754819749056,16.93330947,4226.7,4226.6,1e-08]
[1754819749372,17.99887496,4226.7,4226.6,1e-08]
[1754819749572,18.59307496,4226.7,4226.6,1e-08]
[1754819749770,17.95600947,4226.7,4226.6,1e-08]
[1754819749944,13.46228151,4226.7,4226.6,1e-08]
[1754819750145,16.93343831,4226.7,4226.6,1e-08]
[1754819750341,17.66048897,4226.7,4226.6,1e-08]
[1754819750668,18.08898897,4226.7,4226.6,1e-08]
[1754819751371,18.93664506,4226.7,4226.6,1e-08]
[1754819751944,18.08898897,4226.7,4226.6,1e-08]
[1754819754478,13.89078897,4226.7,4226.6,1e-08]
[1754819754857,17.06628897,4226.7,4226.6,1e-08]
[1754819755158,13.46228897,4226.7,4226.6,1e-08]
[1754819755363,17.06628897,4226.7,4226.6,1e-08]
[1754819755571,17.49478897,4226.7,4226.6,1e-08]
[1754819755746,18.08908528,4226.7,4226.6,1e-08]
[1754819757278,19.36056942,4226.7,4226.6,1e-08]
[1754819758478,18.76636942,4226.7,4226.6,1e-08]
[1754819758979,17.06638528,4226.7,4226.6,1e-08]
[1754819759357,18.33786942,4226.7,4226.6,1e-08]
[1754819759562,17.06638528,4226.7,4226.6,1e-08]
[1754819759762,18.33786942,4226.7,4226.6,1e-08]
[1754819759995,17.06638528,4226.7,4226.6,1e-08]
[1754819760497,17.36729174,4226.7,4226.6,1.03980001]
[1754819760710,12.91238528,4226.7,4226.6,1.03980001]
[1754819761004,16.93350368,4226.7,4226.6,1.03980001]
[1754819761318,17.9173439,4226.7,4226.6,1e-08]
[1754819761466,17.06643744,4226.7,4226.6,1e-08]
[1754819761669,19.36062158,4226.7,4226.6,1e-08]
[1754819762210,18.08913744,4226.7,4226.6,1e-08]
[1754819762766,17.86766676,4226.7,4226.6,1e-08]
[1754819763067,18.77172145,4226.7,4226.6,1e-08]
[1754819763274,18.34322145,4226.7,4226.6,1e-08]
[1754819763691,17.06659927,4226.7,4226.6,1e-08]
[1754819763895,17.49509927,4226.7,4226.6,1e-08]
[1754819764292,18.08929927,4226.7,4226.6,1e-08]
[1754819765265,20.58129927,4226.7,4226.6,1e-08]
[1754819765803,5.91619185,4226.2,4226.1,0.001]
[1754819765967,17.91591896,4226.2,4226.1,0.001]
[1754819766304,18.34441896,4226.2,4226.1,0.001]
[1754819766997,17.91591896,4226.2,4226.1,0.001]
[1754819767383,18.34441896,4226.2,4226.1,0.001]
[1754819767907,17.06487918,4226.2,4226.1,0.001]
[1754819768090,17.06487918,4226.2,4226.1,1e-08]
[1754819768295,18.08757918,4226.2,4226.1,1e-08]